fUSD/lending_fUSD_20240429
["ID","MTS","AMOUNT","RATE_DAILY","PERIOD"]
[324906969,1714407062828,-5325.0745413,0.00012988,2]
[324906970,1714407062837,-5061.0,0.00012997,2]
[324906971,1714407062847,-500.0,0.00012997,2]
[324906972,1714407062857,-500.0,0.00012997,2]
[324906973,1714407062866,-500.0,0.00012997,2]
[324906974,1714407062875,-500.0,0.00012997,2]
[324906975,1714407062884,-500.0,0.00012997,2]
[324906976,1714407062894,-297.02822393,0.00012997,2]
[324906977,1714407062904,-500.0,0.00012997,2]
[324906978,1714407062913,-24454.11412729,0.00012998,2]
[324906979,1714407062922,-112631.07691315,0.00012998,2]
[324906980,1714407062947,-584.74,0.00012998,2]
[324906981,1714407063017,-11262.44589035,0.00012998,2]
[324906982,1714407063091,-2152.83802599,0.00012998,2]
[324906983,1714407063102,-714.32538413,0.00012998,2]
[324906984,1714407091408,150.0,0.00020431,120]
[324906985,1714407150937,150.0,0.00021121,120]
[324906986,1714407210892,150.0,0.00020962,120]
[324906987,1714407270887,150.0,0.00020497,120]
[324906988,1714407330895,150.0,0.00023498,120]
[324906989,1714407390912,150.0,0.00023644,120]
[324906990,1714407451452,150.0,0.00024875,120]
[324906991,1714407511727,150.0,0.00024509,120]
[324906992,1714407570917,150.0,0.00024543,120]
[324906993,1714407659972,-262.44920818,9.997e-05,2]
[324906994,1714407659996,-35277.410989,9.997e-05,2]
[324906995,1714407660021,-13035.64150855,9.998e-05,2]
[324906996,1714407660045,-1416.11454354,0.0001,2]
[324906997,1714407660069,-787.64873451,0.0001,2]
[324906998,1714407663107,150.0,9.996e-05,2]
[324906999,1714407701056,295.61,8.792e-05,2]
[324907000,1714407704078,1375.03310501,9.996e-05,2]
[324907001,1714407704543,344.85046386,9.996e-05,2]
[324907002,1714407707477,20182.90917099,9.996e-05,2]
[324907003,1714407707979,1472.47323451,9.996e-05,2]
[324907004,1714407710501,189.33324968,9.996e-05,2]
[324907005,1714407711919,559.83176209,9.996e-05,2]
[324907006,1714407713192,399.48907395,9.996e-05,2]
[324907007,1714407714594,155.0,9.996e-05,2]
[324907008,1714407714688,257.54578084,9.996e-05,2]
[324907009,1714407716370,19687.30218531,9.996e-05,2]
[324907010,1714407718536,357.33432229,9.996e-05,2]
[324907011,1714407720058,1375.03310501,9.996e-05,2]
[324907012,1714407721794,20182.90917099,9.996e-05,2]
[324907013,1714407725852,155.0,9.996e-05,2]
[324907014,1714407727889,1472.47323451,9.996e-05,2]
[324907015,1714407727931,561.86297189,9.996e-05,2]
[324907016,1714407728686,257.54578084,9.996e-05,2]
[324907017,1714407730591,180.21241663,9.996e-05,2]
[324907018,1714407731199,399.48907395,9.996e-05,2]
[324907019,1714407732345,14201.80285723,9.996e-05,2]
[324907020,1714407741477,18797.02761047,9.996e-05,2]
[324907021,1714407743593,871.83841929,9.995e-05,2]
[324907022,1714407743835,155.0,9.996e-05,2]
[324907023,1714407744081,1375.03310501,9.996e-05,2]
[324907024,1714407744883,257.54578084,9.996e-05,2]
[324907025,1714407747203,398.84104062,9.996e-05,2]
[324907026,1714407747868,565.84261517,9.996e-05,2]
[324907027,1714407764063,1373.32321041,9.996e-05,2]
[324907028,1714407765994,257.54578084,9.996e-05,2]
[324907029,1714407766029,155.0,9.996e-05,2]
[324907030,1714407780702,257.54578084,9.996e-05,2]
[324907031,1714407784288,155.0,9.996e-05,2]
[324907032,1714407796702,257.54578084,9.996e-05,2]
[324907033,1714407802028,242.51813745,9.996e-05,2]
[324907034,1714407814718,257.54578084,9.996e-05,2]
[324907035,1714407830715,257.54578084,9.996e-05,2]
[324907036,1714407848692,257.70250154,9.996e-05,2]
[324907037,1714407909857,170.57,8.531e-05,2]
[324907038,1714407974082,5426.97764473,8.531e-05,2]
[324907051,1714408231857,-1785.29637158,0.00010567,2]
[324907052,1714408231867,-787.64873451,0.00010568,2]
[324907053,1714408231876,-262.44920818,0.00010569,2]
[324907054,1714408231886,-2698.7,0.00010625,2]
[324907055,1714408231895,-1482.66,0.00010629,2]
[324907056,1714408231904,-172.77,0.00010644,2]
[324907057,1714408231914,-500.0,0.00010648,2]
[324907058,1714408231924,-4970.48340786,0.00010735,2]
[324907059,1714408231933,-633.78355333,0.00010738,2]
[324907060,1714408231943,-157.88,0.00010739,2]
[324907061,1714408231952,-499.99,0.00010739,2]
[324907062,1714408231961,-468.75,0.00010959,2]
[324907063,1714408231971,-481.55,0.00010959,2]
[324907064,1714408231981,-999.99,0.00010959,2]
[324907065,1714408231990,-158.28,0.00010959,2]
[324907066,1714408231999,-150.0,0.00010959,2]
[324907067,1714408232008,-2450.0,0.00011,3]
[324907068,1714408232018,-295.61,0.00011056,2]
[324907069,1714408232026,-156.54,0.00011381,2]
[324907070,1714408232038,-156.54,0.00011385,2]
[324907071,1714408232047,-156.54,0.00011388,2]
[324907072,1714408232056,-156.54,0.00011392,2]
[324907073,1714408232064,-156.54,0.00011395,2]
[324907074,1714408232074,-156.54,0.00011399,2]
[324907075,1714408232083,-156.54,0.00011402,2]
[324907076,1714408232091,-156.54,0.00011406,2]
[324907077,1714408232100,-156.54,0.0001141,2]
[324907078,1714408232109,-156.54,0.00011413,2]
[324907080,1714408232118,-156.54,0.00011417,2]
[324907082,1714408232127,-156.54,0.0001142,2]
[324907084,1714408232137,-156.54,0.00011424,2]
[324907086,1714408232146,-156.54,0.00011427,2]
[324907087,1714408232157,-156.54,0.00011431,2]
[324907089,1714408232166,-156.54,0.00011435,2]
[324907091,1714408232175,-156.54,0.00011438,2]
[324907093,1714408232184,-170.25,0.00011487,2]
[324907095,1714408232193,-524.09,0.00011524,2]
[324907097,1714408232202,-150.0,0.00011599,2]
[324907116,1714408232397,-521.81,0.00011599,2]
[324907117,1714408232418,-300.7,0.00011836,2]
[324907118,1714408232430,-763.3028533,0.00012,2]
[324907119,1714408232440,-28000.0,0.00012213,2]
[324907120,1714408232449,-4584.3685979,0.00012299,2]
[324907121,1714408232459,-685.70451048,0.0001231,2]
[324907122,1714408232468,-5466.96294396,0.0001231,2]
[324907123,1714408232478,-255.48323707,0.0001231,2]
[324907124,1714408232487,-157.55918025,0.0001231,2]
[324907125,1714408232497,-706.66913894,0.0001231,2]
[324907126,1714408232506,-725.63,0.00012311,2]
[324907127,1714408232515,-500.0,0.00012311,2]
[324907128,1714408232525,-804.75,0.00012311,2]
[324907129,1714408232535,-1488.04,0.00012311,2]
[324907130,1714408232544,-596.71,0.00012311,2]
[324907131,1714408232553,-500.0,0.00012311,2]
[324907132,1714408232562,-1981.95,0.00012311,2]
[324907133,1714408232572,-459.35826264,0.00012311,2]
[324907134,1714408232889,-197.06173736,0.00012311,2]
[324907135,1714408232899,-1812.78341265,0.00012311,2]
[324907136,1714408232932,-5636.70658735,0.00012311,2]
[324907137,1714408232942,-1023.27,0.00012311,2]
[324907138,1714408232951,-708.05,0.00012311,2]
[324907139,1714408232960,-1652.8,0.00012311,2]
[324907140,1714408232969,-732.17,0.00012311,2]
[324907141,1714408232978,-884.01,0.00012311,2]
[324907142,1714408232988,-555.14,0.00012311,2]
[324907143,1714408232997,-500.0,0.00012311,2]
[324907144,1714408233007,-500.0,0.00012311,2]
[324907145,1714408233017,-500.0,0.00012311,2]
[324907146,1714408233026,-500.0,0.00012311,2]
[324907147,1714408233035,-500.0,0.00012311,2]
[324907148,1714408233045,-500.0,0.00012311,2]
[324907149,1714408233054,-839.89,0.00012311,2]
[324907150,1714408233064,-500.0,0.00012311,2]
[324907151,1714408233074,-330.64,0.00012311,2]
[324907152,1714408233083,-500.0,0.00012311,2]
[324907153,1714408233092,-500.0,0.00012311,2]
[324907154,1714408233102,-500.0,0.00012311,2]
[324907155,1714408233111,-3360.54191296,0.00012312,2]
[324907157,1714408233120,-500.0,0.00012312,2]
[324907158,1714408233129,-500.0,0.00012312,2]
[324907159,1714408233138,-500.0,0.00012312,2]
[324907160,1714408233147,-500.0,0.00012312,2]
[324907161,1714408233156,-644.83,0.00012312,2]
[324907162,1714408233165,-500.0,0.00012312,2]
[324907163,1714408233174,-529.33,0.00012312,2]
[324907164,1714408233183,-500.0,0.00012312,2]
[324907165,1714408233193,-500.0,0.00012312,2]
[324907166,1714408233202,-500.0,0.00012312,2]
[324907167,1714408233211,-500.0,0.00012312,2]
[324907168,1714408233221,-545.27,0.00012312,2]
[324907169,1714408233230,-500.0,0.00012312,2]
[324907170,1714408233240,-634.99,0.00012312,2]
[324907171,1714408233249,-500.0,0.00012312,2]
[324907172,1714408233258,-500.0,0.00012312,2]
[324907173,1714408233270,-500.0,0.00012312,2]
[324907174,1714408233280,-661.85,0.00012312,2]
[324907175,1714408233293,-500.0,0.00012312,2]
[324907176,1714408233302,-443.97632401,0.00012312,2]
[324907177,1714408233311,-894.72,0.00012312,2]
[324907178,1714408233320,-500.0,0.00012312,2]
[324907179,1714408233330,-503.93,0.00012312,2]
[324907180,1714408233339,-500.0,0.00012312,2]
[324907181,1714408233348,-500.0,0.00012312,2]
[324907182,1714408233357,-586.3,0.00012312,2]
[324907183,1714408233366,-536.8,0.00012312,2]
[324907184,1714408233375,-500.0,0.00012312,2]
[324907185,1714408233384,-500.0,0.00012312,2]
[324907186,1714408233397,-500.0,0.00012312,2]
[324907187,1714408233406,-500.0,0.00012312,2]
[324907188,1714408233415,-500.0,0.00012312,2]
[324907189,1714408233424,-500.0,0.00012312,2]
[324907190,1714408233434,-500.0,0.00012312,2]
[324907191,1714408233443,-500.0,0.00012312,2]
[324907192,1714408233453,-500.0,0.00012312,2]
[324907193,1714408233462,-500.0,0.00012312,2]
[324907194,1714408233472,-817.88,0.00012312,2]
[324907195,1714408233482,-500.0,0.00012312,2]
[324907196,1714408233491,-797.38,0.00012312,2]
[324907197,1714408233500,-500.0,0.00012312,2]
[324907198,1714408233509,-500.0,0.00012312,2]
[324907199,1714408233518,-500.0,0.00012312,2]
[324907200,1714408233527,-606.03,0.00012312,2]
[324907201,1714408233537,-1013.69,0.00012312,2]
[324907202,1714408233546,-531.39,0.00012312,2]
[324907203,1714408233555,-500.0,0.00012312,2]
[324907204,1714408233564,-500.0,0.00012312,2]
[324907205,1714408233575,-500.0,0.00012312,2]
[324907206,1714408233584,-500.0,0.00012312,2]
[324907207,1714408233593,-500.0,0.00012312,2]
[324907208,1714408233602,-500.0,0.00012312,2]
[324907209,1714408233611,-865.47,0.00012312,2]
[324907210,1714408233620,-815.34,0.00012312,2]
[324907211,1714408233630,-500.0,0.00012312,2]
[324907212,1714408233639,-500.0,0.00012312,2]
[324907213,1714408233649,-500.0,0.00012312,2]
[324907214,1714408233658,-254.65,0.00012312,2]
[324907215,1714408233667,-500.0,0.00012312,2]
[324907216,1714408233676,-500.0,0.00012312,2]
[324907217,1714408233685,-500.0,0.00012312,2]
[324907218,1714408233695,-500.0,0.00012312,2]
[324907219,1714408233704,-500.0,0.00012312,2]
[324907220,1714408233713,-652.13,0.00012312,2]
[324907221,1714408233722,-500.0,0.00012312,2]
[324907222,1714408233731,-500.0,0.00012312,2]
[324907223,1714408233740,-500.0,0.00012312,2]
[324907224,1714408233749,-500.0,0.00012312,2]
[324907225,1714408233758,-499.72326719,0.00012312,2]
[324907226,1714408233767,-500.0,0.00012312,2]
[324907227,1714408233777,-500.0,0.00012312,2]
[324907228,1714408233786,-140.7608687,0.00012312,2]
[324907229,1714408233799,-359.2391313,0.00012312,2]
[324907230,1714408233809,-601.18,0.00012312,2]
[324907231,1714408233818,-500.0,0.00012312,2]
[324907232,1714408233827,-500.0,0.00012312,2]
[324907233,1714408233837,-541.87,0.00012312,2]
[324907234,1714408233847,-490.65309559,0.00012312,2]
[324907235,1714408233894,-9.34690441,0.00012312,2]
[324907236,1714408233903,-532.10140465,0.00012312,2]
[324907237,1714408233912,-500.0,0.00012312,2]
[324907238,1714408233922,-560.59,0.00012312,2]
[324907239,1714408233931,-500.0,0.00012312,2]
[324907240,1714408233941,-500.0,0.00012312,2]
[324907241,1714408233951,-147.96169094,0.00012312,2]
[324907274,1714408237868,-352.03830906,0.00012312,2]
[324907276,1714408237878,-500.0,0.00012312,2]
[324907278,1714408237888,-553.16,0.00012312,2]
[324907280,1714408237897,-500.0,0.00012312,2]
[324907282,1714408237907,-500.0,0.00012312,2]
[324907285,1714408237916,-872.37,0.00012312,2]
[324907287,1714408237926,-500.0,0.00012312,2]
[324907289,1714408237935,-854.33,0.00012312,2]
[324907291,1714408237945,-500.0,0.00012312,2]
[324907293,1714408237955,-500.0,0.00012312,2]
[324907295,1714408237964,-821.04,0.00012312,2]
[324907297,1714408237973,-500.0,0.00012312,2]
[324907298,1714408237983,-537.9,0.00012312,2]
[324907300,1714408237993,-851.46,0.00012312,2]
[324907302,1714408238002,-609.51,0.00012312,2]
[324907304,1714408238011,-500.0,0.00012312,2]
[324907305,1714408238021,-2242.92,0.00012312,2]
[324907306,1714408238033,-500.0,0.00012312,2]
[324907307,1714408238044,-66.3765695,0.00012312,2]
[324907308,1714408238056,-346.49127393,0.00012312,2]
[324907309,1714408238068,-87.13215657,0.00012312,2]
[324907310,1714408238077,-500.0,0.00012312,2]
[324907311,1714408238086,-732.63,0.00012312,2]
[324907312,1714408238095,-1158.19,0.00012312,2]
[324907313,1714408238105,-500.0,0.00012312,2]
[324907314,1714408238114,-500.0,0.00012312,2]
[324907315,1714408238124,-500.0,0.00012312,2]
[324907316,1714408238133,-956.91,0.00012312,2]
[324907317,1714408238142,-500.0,0.00012312,2]
[324907318,1714408238151,-500.0,0.00012312,2]
[324907319,1714408238161,-527.18,0.00012312,2]
[324907320,1714408238170,-1006.15,0.00012312,2]
[324907321,1714408238180,-500.0,0.00012312,2]
[324907322,1714408238189,-1120.09,0.00012312,2]
[324907324,1714408238198,-500.0,0.00012312,2]
[324907325,1714408238207,-500.0,0.00012312,2]
[324907326,1714408238217,-500.0,0.00012312,2]
[324907327,1714408238226,-5050.85,0.00012312,2]
[324907328,1714408238235,-500.0,0.00012312,2]
[324907329,1714408238245,-500.0,0.00012312,2]
[324907330,1714408238254,-502.15813211,0.00012312,2]
[324907331,1714408238264,-2720.4,0.00012312,2]
[324907332,1714408238274,-500.0,0.00012312,2]
[324907333,1714408238283,-500.0,0.00012312,2]
[324907334,1714408238296,-500.0,0.00012312,2]
[324907335,1714408238305,-500.0,0.00012312,2]
[324907336,1714408238314,-500.0,0.00012312,2]
[324907337,1714408238323,-598.09,0.00012312,2]
[324907338,1714408238331,-500.0,0.00012312,2]
[324907339,1714408238340,-712.67,0.00012312,2]
[324907340,1714408238350,-500.0,0.00012312,2]
[324907341,1714408238360,-1894.65,0.00012312,2]
[324907342,1714408238370,-500.0,0.00012312,2]
[324907343,1714408238380,-970.2,0.00012312,2]
[324907345,1714408238390,-734.0,0.00012312,2]
[324907346,1714408238403,-805.84,0.00012312,2]
[324907348,1714408238413,-737.44,0.00012312,2]
[324907350,1714408238422,-500.0,0.00012312,2]
[324907352,1714408238431,-674.09,0.00012312,2]
[324907353,1714408238446,-500.0,0.00012312,2]
[324907355,1714408238456,-500.0,0.00012312,2]
[324907356,1714408238466,-590.85,0.00012312,2]
[324907357,1714408238475,-655.4,0.00012312,2]
[324907358,1714408238485,-500.0,0.00012312,2]
[324907359,1714408238495,-576.5,0.00012312,2]
[324907360,1714408238505,-1169.78,0.00012312,2]
[324907361,1714408238515,-500.0,0.00012312,2]
[324907362,1714408238525,-500.0,0.00012312,2]
[324907363,1714408238535,-500.0,0.00012312,2]
[324907364,1714408238547,-500.0,0.00012312,2]
[324907365,1714408238556,-500.0,0.00012312,2]
[324907366,1714408238565,-963.06,0.00012312,2]
[324907367,1714408238575,-557.76,0.00012312,2]
[324907368,1714408238584,-500.0,0.00012312,2]
[324907369,1714408238594,-728.65,0.00012312,2]
[324907370,1714408238604,-500.0,0.00012312,2]
[324907371,1714408238613,-630.35,0.00012312,2]
[324907372,1714408238623,-889.95,0.00012312,2]
[324907373,1714408238632,-501.29,0.00012312,2]
[324907374,1714408238642,-557.18,0.00012312,2]
[324907375,1714408238652,-500.0,0.00012312,2]
[324907376,1714408238663,-838.73,0.00012312,2]
[324907377,1714408238672,-500.0,0.00012312,2]
[324907378,1714408238682,-500.0,0.00012312,2]
[324907379,1714408238692,-748.59,0.00012312,2]
[324907380,1714408238701,-500.0,0.00012312,2]
[324907381,1714408238710,-500.0,0.00012312,2]
[324907382,1714408238721,-500.0,0.00012312,2]
[324907383,1714408238732,-768.01,0.00012312,2]
[324907384,1714408238742,-790.48,0.00012312,2]
[324907385,1714408238752,-2832.04,0.00012312,2]
[324907386,1714408238763,-500.0,0.00012312,2]
[324907387,1714408238773,-761.93,0.00012312,2]
[324907388,1714408238783,-1583.98,0.00012312,2]
[324907389,1714408238794,-500.0,0.00012312,2]
[324907390,1714408238804,-728.64,0.00012312,2]
[324907391,1714408238814,-1138.93,0.00012312,2]
[324907392,1714408238823,-723.2,0.00012312,2]
[324907393,1714408238833,-943.34,0.00012312,2]
[324907394,1714408238843,-500.0,0.00012312,2]
[324907395,1714408238853,-5903.72,0.00012312,2]
[324907396,1714408238863,-500.0,0.00012312,2]
[324907397,1714408238873,-2972.22,0.00012312,2]
[324907398,1714408238883,-500.0,0.00012312,2]
[324907399,1714408238893,-767.72,0.00012312,2]
[324907400,1714408238902,-668.86,0.00012312,2]
[324907401,1714408238911,-500.0,0.00012312,2]
[324907402,1714408238921,-500.0,0.00012312,2]
[324907403,1714408238930,-628.64,0.00012312,2]
[324907404,1714408238939,-1090.4,0.00012312,2]
[324907405,1714408238949,-531.29,0.00012312,2]
[324907406,1714408238958,-772.68,0.00012312,2]
[324907407,1714408238968,-787.12,0.00012312,2]
[324907408,1714408238977,-500.0,0.00012312,2]
[324907409,1714408238986,-964.59,0.00012312,2]
[324907410,1714408238996,-500.0,0.00012312,2]
[324907411,1714408239006,-1205.4,0.00012312,2]
[324907412,1714408239015,-814.87,0.00012312,2]
[324907413,1714408239025,-522.23,0.00012312,2]
[324907414,1714408239034,-500.0,0.00012312,2]
[324907415,1714408239045,-521.17,0.00012312,2]
[324907416,1714408239055,-718.33,0.00012312,2]
[324907417,1714408239064,-500.0,0.00012312,2]
[324907418,1714408239074,-500.0,0.00012312,2]
[324907419,1714408239083,-786.31,0.00012312,2]
[324907420,1714408239093,-500.0,0.00012312,2]
[324907421,1714408239103,-500.0,0.00012312,2]
[324907422,1714408239112,-798.1,0.00012312,2]
[324907423,1714408239121,-500.0,0.00012312,2]
[324907424,1714408239130,-807.34,0.00012312,2]
[324907425,1714408239139,-922.87,0.00012312,2]
[324907426,1714408239149,-566.76,0.00012312,2]
[324907427,1714408239159,-873.07,0.00012312,2]
[324907428,1714408239168,-500.0,0.00012312,2]
[324907429,1714408239178,-683.89,0.00012312,2]
[324907430,1714408239187,-500.0,0.00012312,2]
[324907431,1714408239197,-500.0,0.00012312,2]
[324907432,1714408239206,-734.82,0.00012312,2]
[324907433,1714408239216,-1445.93,0.00012312,2]
[324907434,1714408239225,-500.0,0.00012312,2]
[324907435,1714408239235,-683.74,0.00012312,2]
[324907436,1714408239244,-1045.91,0.00012312,2]
[324907437,1714408239254,-500.0,0.00012312,2]
[324907438,1714408239263,-794.78,0.00012312,2]
[324907439,1714408239273,-863.49,0.00012312,2]
[324907440,1714408239282,-500.0,0.00012312,2]
[324907441,1714408239294,-500.0,0.00012312,2]
[324907442,1714408239304,-500.0,0.00012312,2]
[324907443,1714408239316,-1012.87,0.00012312,2]
[324907444,1714408239325,-876.32,0.00012312,2]
[324907445,1714408239334,-244.80319147,0.00012312,2]
[324907446,1714408239373,-500.0,0.00012311,2]
[324907447,1714408239382,-466.59680853,0.00012312,2]
[324907448,1714408239393,-2008.54,0.00012312,2]
[324907449,1714408239405,-2289.52,0.00012312,2]
[324907450,1714408239414,-500.0,0.00012312,2]
[324907451,1714408239424,-1025.65,0.00012312,2]
[324907452,1714408239433,-430.79,0.00012312,2]
[324907453,1714408239447,-500.0,0.00012312,2]
[324907454,1714408239456,-977.41,0.00012312,2]
[324907455,1714408239466,-500.0,0.00012312,2]
[324907456,1714408239475,-735.88,0.00012312,2]
[324907457,1714408239485,-500.0,0.00012313,2]
[324907458,1714408239494,-500.0,0.00012313,2]
[324907459,1714408239503,-500.0,0.00012313,2]
[324907460,1714408239512,-500.0,0.00012313,2]
[324907461,1714408239523,-225.55299272,0.00012313,2]
[324907462,1714408239534,-500.0,0.00012313,2]
[324907463,1714408239544,-500.0,0.00012313,2]
[324907464,1714408239554,-500.0,0.00012313,2]
[324907465,1714408239563,-250.62784284,0.00012313,2]
[324907466,1714408239573,-500.0,0.00012313,2]
[324907467,1714408239581,-500.0,0.00012313,2]
[324907468,1714408239591,-500.0,0.00012313,2]
[324907469,1714408239600,-500.0,0.00012313,2]
[324907470,1714408239609,-500.0,0.00012313,2]
[324907471,1714408239618,-500.0,0.00012313,2]
[324907472,1714408239627,-500.0,0.00012313,2]
[324907473,1714408239637,-500.0,0.00012313,2]
[324907474,1714408239647,-500.0,0.00012313,2]
[324907475,1714408239656,-500.0,0.00012313,2]
[324907476,1714408239665,-566.48024118,0.00012313,2]
[324907477,1714408239674,-500.0,0.00012313,2]
[324907478,1714408239683,-500.0,0.00012313,2]
[324907479,1714408239693,-500.0,0.00012313,2]
[324907480,1714408239702,-500.0,0.00012313,2]
[324907481,1714408239711,-500.0,0.00012313,2]
[324907483,1714408239721,-500.0,0.00012313,2]
[324907486,1714408239730,-500.0,0.00012313,2]
[324907488,1714408239739,-589.08,0.00012313,2]
[324907490,1714408239748,-500.0,0.00012313,2]
[324907492,1714408239757,-500.0,0.00012313,2]
[324907494,1714408239767,-500.0,0.00012313,2]
[324907495,1714408239776,-1331.24,0.00012313,2]
[324907496,1714408239785,-607.96632497,0.00012313,2]
[324907497,1714408239797,-500.0,0.00012313,2]
[324907498,1714408239806,-500.0,0.00012313,2]
[324907500,1714408239815,-660.93,0.00012313,2]
[324907501,1714408239825,-1130.01,0.00012313,2]
[324907502,1714408239834,-615.98,0.00012313,2]
[324907503,1714408239843,-772.45,0.00012313,2]
[324907504,1714408239853,-932.78,0.00012313,2]
[324907505,1714408239862,-859.79,0.00012313,2]
[324907506,1714408239871,-500.0,0.00012313,2]
[324907507,1714408239880,-766.82,0.00012313,2]
[324907508,1714408239890,-500.0,0.00012313,2]
[324907509,1714408239899,-500.0,0.00012313,2]
[324907510,1714408239908,-1119.7,0.00012313,2]
[324907511,1714408239917,-1244.48,0.00012313,2]
[324907512,1714408239926,-1309.28,0.00012313,2]
[324907513,1714408239936,-593.0,0.00012329,2]
[324907514,1714408239945,-172.77,0.00012418,2]
[324907515,1714408239955,-418.55493597,0.00012486,2]
[324907516,1714408239964,-152.0,0.00012563,3]
[324907517,1714408239974,-325.8442159,0.00012584,2]
[324907518,1714408239983,-1777.33405598,0.00012584,2]
[324907519,1714408239993,-305.39391058,0.00012584,2]
[324907520,1714408240002,-155.0,0.00012584,2]
[324907521,1714408240011,-500.0,0.00012585,2]
[324907522,1714408240020,-500.0,0.00012585,2]
[324907523,1714408240029,-500.0,0.00012585,2]
[324907524,1714408240041,-500.0,0.00012585,2]
[324907525,1714408240050,-500.0,0.00012585,2]
[324907526,1714408240060,-500.0,0.00012585,2]
[324907527,1714408240069,-500.0,0.00012585,2]
[324907528,1714408240079,-500.0,0.00012585,2]
[324907529,1714408240088,-500.0,0.00012585,2]
[324907530,1714408240098,-500.0,0.00012585,2]
[324907531,1714408240108,-394.70602722,0.00012585,2]
[324907532,1714408240118,-318.65853592,0.00012585,2]
[324907533,1714408240127,-500.0,0.00012585,2]
[324907534,1714408240136,-531.93,0.00012585,2]
[324907535,1714408240146,-500.0,0.00012585,2]
[324907536,1714408240156,-500.0,0.00012585,2]
[324907537,1714408240166,-500.0,0.00012585,2]
[324907538,1714408240175,-500.0,0.00012585,2]
[324907539,1714408240184,-500.0,0.00012585,2]
[324907540,1714408240194,-500.0,0.00012585,2]
[324907541,1714408240203,-500.0,0.00012585,2]
[324907542,1714408240212,-500.0,0.00012585,2]
[324907543,1714408240222,-500.0,0.00012585,2]
[324907544,1714408240231,-500.0,0.00012585,2]
[324907545,1714408240240,-540.24,0.00012585,2]
[324907546,1714408240249,-500.0,0.00012585,2]
[324907547,1714408240258,-500.0,0.00012585,2]
[324907548,1714408240267,-191.14776903,0.00012585,2]
[324907549,1714408240276,-500.0,0.00012585,2]
[324907550,1714408240285,-500.0,0.00012585,2]
[324907551,1714408240298,-500.0,0.00012585,2]
[324907552,1714408240307,-500.0,0.00012585,2]
[324907553,1714408240316,-586.74,0.00012585,2]
[324907554,1714408240325,-500.0,0.00012585,2]
[324907555,1714408240334,-500.0,0.00012585,2]
[324907556,1714408240343,-500.0,0.00012585,2]
[324907557,1714408240352,-574.34,0.00012585,2]
[324907558,1714408240362,-144.78633914,0.00012585,2]
[324907559,1714408240376,-355.21366086,0.00012585,2]
[324907560,1714408240385,-500.0,0.00012585,2]
[324907561,1714408240397,-539.44,0.00012585,2]
[324907562,1714408240406,-500.0,0.00012585,2]
[324907563,1714408240415,-500.0,0.00012585,2]
[324907564,1714408240425,-500.0,0.00012585,2]
[324907565,1714408240435,-500.0,0.00012585,2]
[324907566,1714408240447,-500.0,0.00012585,2]
[324907567,1714408240457,-500.0,0.00012585,2]
[324907568,1714408240466,-46.46536036,0.00012585,2]
[324907569,1714408240550,-500.0,0.00012312,2]